lending/lending_fUSD_20250122
["ID","MTS","AMOUNT","RATE_DAILY","PERIOD"]
[350026050,1737576652576,-500.0,0.00021585,2]
[350026051,1737576652585,-500.0,0.00021585,2]
[350026052,1737576652595,-500.0,0.00021585,2]
[350026053,1737576652605,-424.97422811,0.00021585,2]
[350026054,1737576652621,-500.0,0.00021585,2]
[350026055,1737576652632,-500.0,0.00021585,2]
[350026056,1737576652641,-500.0,0.00021585,2]
[350026057,1737576652651,-500.0,0.00021585,2]
[350026058,1737576652660,-500.0,0.00021585,2]
[350026059,1737576652669,-500.0,0.00021585,2]
[350026060,1737576652678,-500.0,0.00021585,2]
[350026061,1737576652687,-500.0,0.00021585,2]
[350026062,1737576652698,-500.0,0.00021585,2]
[350026063,1737576652708,-500.0,0.00021585,2]
[350026064,1737576652717,-500.0,0.00021585,2]
[350026065,1737576652727,-151.0,0.00021585,2]
[350026066,1737576652740,-253.99689761,0.00021585,2]
[350026067,1737576652749,-275.01841,0.00021585,2]
[350026068,1737576652759,-500.0,0.00021585,2]
[350026069,1737576652768,-500.0,0.00021585,2]
[350026070,1737576652777,-500.0,0.00021585,2]
[350026071,1737576652788,-500.0,0.00021585,2]
[350026072,1737576652799,-151.0,0.00021585,2]
[350026073,1737576652808,-500.0,0.00021585,2]
[350026074,1737576652817,-500.0,0.00021585,2]
[350026075,1737576652826,-500.0,0.00021585,2]
[350026076,1737576652835,-500.0,0.00021585,2]
[350026077,1737576652844,-500.0,0.00021585,2]
[350026078,1737576652853,-151.0,0.00021585,2]
[350026079,1737576652862,-563.53,0.00021585,2]
[350026080,1737576652871,-500.0,0.00021585,2]
[350026081,1737576652882,-528.88950233,0.00021585,2]
[350026082,1737576652890,-500.0,0.00021585,2]
[350026083,1737576652899,-500.0,0.00021585,2]
[350026084,1737576652910,-500.0,0.00021585,2]
[350026085,1737576652920,-500.0,0.00021585,2]
[350026086,1737576652930,-500.0,0.00021585,2]
[350026087,1737576652939,-500.0,0.00021585,2]
[350026088,1737576652948,-500.0,0.00021585,2]
[350026089,1737576652957,-500.0,0.00021585,2]
[350026090,1737576652967,-500.0,0.00021585,2]
[350026091,1737576652976,-500.0,0.00021585,2]
[350026092,1737576652985,-500.0,0.00021585,2]
[350026093,1737576652994,-526.52285198,0.00021585,2]
[350026094,1737576653003,-500.0,0.00021585,2]
[350026095,1737576653012,-500.0,0.00021585,2]
[350026096,1737576653022,-500.0,0.00021585,2]
[350026097,1737576653031,-500.0,0.00021585,2]
[350026098,1737576653040,-500.0,0.00021585,2]
[350026099,1737576653049,-500.0,0.00021585,2]
[350026100,1737576653058,-500.0,0.00021585,2]
[350026101,1737576653067,-500.0,0.00021585,2]
[350026102,1737576653077,-500.0,0.00021585,2]
[350026103,1737576653087,-500.0,0.00021585,2]
[350026104,1737576653096,-500.0,0.00021586,2]
[350026105,1737576653105,-595.83712714,0.00021586,2]
[350026106,1737576653114,-500.0,0.00021586,2]
[350026107,1737576653123,-500.0,0.00021586,2]
[350026108,1737576653134,-500.0,0.00021586,2]
[350026109,1737576653143,-500.0,0.00021586,2]
[350026110,1737576653152,-500.0,0.00021586,2]
[350026111,1737576653161,-500.0,0.00021586,2]
[350026112,1737576653170,-500.0,0.00021586,2]
[350026113,1737576653179,-227.69805606,0.00021586,2]
[350026114,1737576653188,-500.0,0.00021586,2]
[350026115,1737576653197,-500.0,0.00021586,2]
[350026116,1737576653206,-500.0,0.00021586,2]
[350026117,1737576653215,-500.0,0.00021586,2]
[350026118,1737576653224,-500.0,0.00021586,2]
[350026119,1737576653233,-500.0,0.00021586,2]
[350026120,1737576653242,-500.0,0.00021586,2]
[350026121,1737576653251,-500.0,0.00021586,2]
[350026122,1737576653260,-151.0,0.00021586,2]
[350026123,1737576653268,-500.0,0.00021586,2]
[350026124,1737576653278,-540.16,0.00021586,2]
[350026125,1737576653287,-500.0,0.00021586,2]
[350026126,1737576653296,-500.0,0.00021586,2]
[350026127,1737576653305,-500.0,0.00021586,2]
[350026128,1737576653314,-500.0,0.00021586,2]
[350026129,1737576653323,-500.0,0.00021586,2]
[350026130,1737576653332,-500.0,0.00021586,2]
[350026131,1737576653342,-500.0,0.00021586,2]
[350026132,1737576653351,-500.0,0.00021586,2]
[350026133,1737576653360,-500.0,0.00021586,2]
[350026134,1737576653369,-500.0,0.00021586,2]
[350026135,1737576653379,-506.78429934,0.00021586,2]
[350026136,1737576653388,-500.0,0.00021586,2]
[350026137,1737576653397,-500.0,0.00021586,2]
[350026138,1737576653407,-500.0,0.00021586,2]
[350026139,1737576653415,-500.0,0.00021586,2]
[350026140,1737576653425,-500.0,0.00021586,2]
[350026141,1737576653434,-500.0,0.00021586,2]
[350026142,1737576653443,-500.0,0.00021586,2]
[350026143,1737576653452,-500.0,0.00021586,2]
[350026144,1737576653461,-500.0,0.00021586,2]
[350026145,1737576653470,-500.0,0.00021586,2]
[350026146,1737576653479,-500.0,0.00021586,2]
[350026147,1737576653488,-500.0,0.00021586,2]
[350026148,1737576653498,-500.0,0.00021586,2]
[350026149,1737576653506,-385.69369327,0.00021586,2]
[350026150,1737576653516,-151.0,0.00021586,2]
[350026151,1737576653524,-500.0,0.00021586,2]
[350026152,1737576653533,-500.0,0.00021586,2]
[350026153,1737576653543,-500.0,0.00021586,2]
[350026154,1737576653552,-500.0,0.00021586,2]
[350026155,1737576653560,-500.0,0.00021586,2]
[350026156,1737576653569,-500.0,0.00021586,2]
[350026157,1737576653578,-500.0,0.00021586,2]
[350026158,1737576653587,-641.5,0.00021586,2]
[350026159,1737576653596,-500.0,0.00021586,2]
[350026160,1737576653733,-522.84547182,0.00021586,2]
[350026161,1737576653743,-607.20279101,0.00021586,2]
[350026162,1737576653753,-500.0,0.00021586,2]
[350026163,1737576653762,-500.0,0.00021586,2]
[350026164,1737576653771,-404.58928747,0.00021586,2]
[350026165,1737576653780,-500.0,0.00021586,2]
[350026166,1737576653789,-500.0,0.00021586,2]
[350026167,1737576653799,-500.0,0.00021586,2]
[350026168,1737576653810,-151.0,0.00021586,2]
[350026169,1737576653820,-500.0,0.00021586,2]
[350026170,1737576653831,-151.0,0.00021586,2]
[350026171,1737576653840,-500.0,0.00021586,2]
[350026172,1737576653850,-482.458548,0.00021586,2]
[350026173,1737576653860,-500.0,0.00021586,2]
[350026174,1737576653870,-500.0,0.00021586,2]
[350026175,1737576653881,-500.0,0.00021586,2]
[350026176,1737576653890,-500.0,0.00021586,2]
[350026177,1737576653900,-500.0,0.00021586,2]
[350026178,1737576653909,-500.0,0.00021586,2]
[350026179,1737576653918,-500.0,0.00021586,2]
[350026180,1737576653927,-500.0,0.00021586,2]
[350026181,1737576653936,-500.0,0.00021586,2]
[350026182,1737576653945,-500.0,0.00021586,2]
[350026183,1737576653954,-500.0,0.00021586,2]
[350026184,1737576653964,-500.0,0.00021586,2]
[350026185,1737576653973,-500.0,0.00021586,2]
[350026186,1737576653982,-500.0,0.00021586,2]
[350026187,1737576653991,-500.0,0.00021586,2]
[350026188,1737576654000,-500.0,0.00021586,2]
[350026189,1737576654009,-500.0,0.00021586,2]
[350026190,1737576654018,-500.0,0.00021586,2]
[350026191,1737576654028,-500.0,0.00021586,2]
[350026192,1737576654037,-500.0,0.00021586,2]
[350026193,1737576654046,-500.0,0.00021586,2]
[350026194,1737576654055,-500.0,0.00021586,2]
[350026195,1737576654064,-500.0,0.00021586,2]
[350026196,1737576654073,-500.0,0.00021586,2]
[350026197,1737576654082,-500.0,0.00021586,2]
[350026198,1737576654091,-500.0,0.00021586,2]
[350026199,1737576654101,-500.0,0.00021586,2]
[350026200,1737576654110,-500.0,0.00021586,2]
[350026201,1737576654119,-500.0,0.00021586,2]
[350026202,1737576654130,-500.0,0.00021586,2]
[350026203,1737576654139,-500.0,0.00021586,2]
[350026204,1737576654149,-151.0,0.00021586,2]
[350026205,1737576654159,-500.0,0.00021586,2]
[350026206,1737576654168,-500.0,0.00021586,2]
[350026207,1737576654178,-500.0,0.00021586,2]
[350026208,1737576654187,-500.0,0.00021586,2]
[350026209,1737576654197,-500.0,0.00021586,2]
[350026210,1737576654206,-500.0,0.00021586,2]
[350026211,1737576654215,-500.0,0.00021586,2]
[350026212,1737576654225,-500.0,0.00021586,2]
[350026213,1737576654235,-500.0,0.00021586,2]
[350026214,1737576654244,-500.0,0.00021586,2]
[350026215,1737576654253,-500.0,0.00021586,2]
[350026216,1737576654263,-151.0,0.00021586,2]
[350026217,1737576654272,-151.0,0.00021586,2]
[350026218,1737576654281,-500.0,0.00021586,2]
[350026219,1737576654291,-500.0,0.00021586,2]
[350026220,1737576654300,-500.0,0.00021586,2]
[350026221,1737576654310,-500.0,0.00021586,2]
[350026222,1737576654319,-500.0,0.00021586,2]
[350026223,1737576654329,-500.0,0.00021586,2]
[350026224,1737576654338,-151.0,0.00021586,2]
[350026225,1737576654348,-508.16921428,0.00021586,2]
[350026226,1737576654357,-500.0,0.00021586,2]
[350026227,1737576654367,-529.26,0.00021586,2]
[350026228,1737576654377,-500.0,0.00021586,2]
[350026229,1737576654387,-151.0,0.00021586,2]
[350026230,1737576654397,-500.0,0.00021586,2]
[350026231,1737576654407,-897.11,0.00021586,2]
[350026232,1737576654417,-500.0,0.00021586,2]
[350026233,1737576654426,-1313.42,0.00021586,2]
[350026234,1737576654436,-151.0,0.00021586,2]
[350026235,1737576654445,-500.0,0.00021586,2]
[350026236,1737576654455,-500.0,0.00021586,2]
[350026237,1737576654465,-500.0,0.00021586,2]
[350026238,1737576654474,-759.66,0.00021586,2]
[350026239,1737576654484,-1445.98,0.00021586,2]
[350026240,1737576654493,-500.0,0.00021586,2]
[350026241,1737576654503,-500.0,0.00021586,2]
[350026242,1737576654512,-1717.23,0.00021586,2]
[350026243,1737576654521,-500.0,0.00021586,2]
[350026244,1737576654530,-151.0,0.00021586,2]
[350026245,1737576654540,-3247.23,0.00021586,2]
[350026246,1737576654549,-1125.5,0.00021586,2]
[350026247,1737576654559,-460.31,0.00021586,2]
[350026248,1737576654569,-500.0,0.00021586,2]
[350026249,1737576654578,-500.0,0.00021586,2]
[350026250,1737576654588,-900.2,0.00021586,2]
[350026251,1737576654597,-3230.17,0.00021586,2]
[350026252,1737576654606,-2080.92,0.00021586,2]
[350026253,1737576654620,-500.0,0.00021586,2]
[350026254,1737576654631,-840.9,0.00021586,2]
[350026255,1737576654641,-830.96,0.00021586,2]
[350026256,1737576654650,-500.0,0.00021586,2]
[350026257,1737576654662,-1172.37,0.00021586,2]
[350026258,1737576654671,-1444.02,0.00021586,2]
[350026259,1737576654680,-500.0,0.00021586,2]
[350026260,1737576654690,-500.0,0.00021586,2]
[350026261,1737576654700,-500.0,0.00021586,2]
[350026262,1737576654709,-500.0,0.00021586,2]
[350026263,1737576654719,-877.47,0.00021586,2]
[350026264,1737576654728,-666.24,0.00021586,2]
[350026265,1737576654738,-2568.12,0.00021586,2]
[350026266,1737576654747,-500.0,0.00021586,2]
[350026267,1737576654757,-659.95,0.00021586,2]
[350026268,1737576654766,-500.0,0.00021586,2]
[350026269,1737576654776,-878.44,0.00021586,2]
[350026270,1737576654785,-1164.472675,0.00021586,2]
[350026271,1737576654795,-500.0,0.00021586,2]
[350026272,1737576654804,-500.0,0.00021586,2]
[350026273,1737576654813,-1164.472675,0.00021586,2]
[350026274,1737576654822,-500.0,0.00021586,2]
[350026275,1737576654832,-298.02378106,0.00021586,2]
[350026276,1737576654841,-1079.58,0.00021586,2]
[350026277,1737576654851,-1903.17,0.00021586,2]
[350026278,1737576654860,-500.0,0.00021586,2]
[350026279,1737576654869,-500.0,0.00021586,2]
[350026280,1737576654880,-500.0,0.00021586,2]
[350026281,1737576654889,-676.15,0.00021586,2]
[350026282,1737576654898,-500.0,0.00021586,2]
[350026283,1737576654908,-1000.0,0.00021586,2]
[350026284,1737576654918,-500.0,0.00021586,2]
[350026285,1737576654927,-875.19,0.00021586,2]
[350026286,1737576654936,-957.59,0.00021586,2]
[350026287,1737576654946,-500.0,0.00021586,2]
[350026288,1737576654956,-151.0,0.00021586,2]
[350026289,1737576654965,-1075.96,0.00021586,2]
[350026290,1737576654975,-500.0,0.00021586,2]
[350026291,1737576654984,-500.0,0.00021586,2]
[350026292,1737576654994,-500.0,0.00021586,2]
[350026293,1737576655004,-500.0,0.00021586,2]
[350026294,1737576655013,-1538.31,0.00021586,2]
[350026295,1737576655021,-500.0,0.00021586,2]
[350026296,1737576655031,-500.0,0.00021586,2]
[350026297,1737576655041,-500.0,0.00021586,2]
[350026298,1737576655050,-876.92,0.00021586,2]
[350026299,1737576655060,-500.0,0.00021586,2]
[350026300,1737576655070,-193.93998,0.00021586,2]
[350026301,1737576655079,-193.93998,0.00021586,2]
[350026302,1737576655089,-1671.37,0.00021586,2]
[350026303,1737576655098,-500.0,0.00021586,2]
[350026304,1737576655108,-535.83,0.00021586,2]
[350026305,1737576655118,-500.0,0.00021586,2]
[350026306,1737576655128,-500.0,0.00021586,2]
[350026307,1737576655139,-500.0,0.00021586,2]
[350026308,1737576655149,-500.0,0.00021586,2]
[350026309,1737576655158,-500.0,0.00021586,2]
[350026310,1737576655168,-500.0,0.00021586,2]
[350026311,1737576655177,-500.0,0.00021586,2]
[350026312,1737576655187,-500.0,0.00021586,2]
[350026313,1737576655196,-574.45,0.00021586,2]
[350026314,1737576655206,-500.0,0.00021586,2]
[350026315,1737576655216,-500.0,0.00021586,2]
[350026316,1737576655225,-684.62,0.00021586,2]
[350026317,1737576655236,-179.229088,0.00021586,2]
[350026318,1737576655247,-500.0,0.00021586,2]
[350026319,1737576655257,-500.0,0.00021586,2]
[350026320,1737576655267,-500.0,0.00021586,2]
[350026321,1737576655276,-687.33,0.00021586,2]
[350026322,1737576655286,-500.0,0.00021587,2]
[350026323,1737576655297,-150.0,0.00021588,2]
[350026324,1737576655308,-150.0,0.00021588,2]
[350026325,1737576655318,-150.0,0.00021591,2]
[350026326,1737576655330,-150.0,0.00021593,2]
[350026327,1737576655341,-10851.42776587,0.00021594,2]
[350026328,1737576655352,-150.0,0.00021595,2]
[350026329,1737576655362,-150.0,0.00021597,2]
[350026330,1737576655373,-150.0,0.00021598,2]
[350026331,1737576655388,-150.0,0.00021598,2]
[350026332,1737576655397,-161.27208987,0.000216,2]
[350026333,1737576655412,-150.0,0.00021603,2]
[350026334,1737576655422,-150.0,0.00021605,2]
[350026335,1737576655432,-150.0,0.00021606,2]
[350026336,1737576655441,-150.0,0.00021615,2]
[350026337,1737576655451,-150.0,0.00021621,2]
[350026338,1737576655460,-150.0,0.00021621,2]
[350026339,1737576655470,-1000.0,0.00021621,2]
[350026340,1737576655480,-150.0,0.00021622,2]
[350026341,1737576655489,-166.39721903,0.00021624,2]
[350026342,1737576655498,-150.0,0.00021628,2]
[350026343,1737576655508,-150.0,0.00021631,2]
[350026344,1737576655517,-1685.0,0.00021634,2]
[350026345,1737576655527,-150.0,0.00021634,2]
[350026346,1737576655536,-150.0,0.00021636,2]
[350026347,1737576655546,-150.0,0.00021637,2]
[350026348,1737576655555,-150.0,0.0002164,2]
[350026349,1737576655566,-150.0,0.0002164,2]
[350026350,1737576655576,-500.0,0.00021643,2]
[350026351,1737576655586,-150.0,0.00021643,2]
[350026352,1737576655596,-150.0,0.00021644,2]
[350026353,1737576655606,-150.0,0.00021646,2]
[350026354,1737576655617,-150.0,0.00021648,2]
[350026355,1737576655636,-150.0,0.0002165,2]
[350026356,1737576655649,-235.92455412,0.0002165,2]
[350026357,1737576655659,-150.0,0.00021652,2]
[350026358,1737576655668,-150.0,0.00021653,2]
[350026359,1737576655677,-150.0,0.00021655,2]
[350026360,1737576655686,-150.0,0.00021657,2]
[350026361,1737576655696,-151.0,0.00021658,2]
[350026362,1737576655706,-151.0,0.00021658,2]
[350026363,1737576655717,-150.0,0.00021659,2]
[350026364,1737576655726,-150.0,0.00021662,2]
[350026365,1737576655735,-11026.02113118,0.00021663,2]
[350026366,1737576655744,-399.77336984,0.00021665,2]
[350026367,1737576655754,-150.0,0.00021668,2]
[350026368,1737576655763,-10851.42776587,0.00021671,2]
[350026369,1737576655773,-17801.33767923,0.00021671,2]
[350026370,1737576655783,-151.0,0.00021671,2]
[350026371,1737576655792,-1164.472675,0.00021671,2]
[350026372,1737576655801,-1164.472675,0.00021671,2]
[350026373,1737576655810,-151.0,0.00021675,2]
[350026374,1737576655819,-193.93998,0.00021675,2]
[350026375,1737576655829,-193.93998,0.00021675,2]
[350026376,1737576655839,-9468.0947248,0.00021675,2]
[350026377,1737576655848,-5000.0,0.00021675,2]
[350026378,1737576655857,-5000.0,0.00021675,2]
[350026379,1737576655867,-150.0,0.00021676,2]
[350026380,1737576655876,-150.0,0.00021676,2]
[350026381,1737576655891,-150.0,0.0002168,2]
[350026382,1737576655901,-508.03,0.00021685,7]
[350026383,1737576655910,-508.03,0.00021685,7]
[350026384,1737576655920,-150.0,0.00021691,2]
[350026385,1737576655929,-223.5251718,0.00021695,2]
[350026386,1737576655938,-880.7107225,0.00021698,2]
[350026387,1737576655947,-500.0,0.00021699,2]
[350026388,1737576655957,-108370.15552796,0.000217,2]
[350026389,1737576655966,-177.68131708,0.000217,2]
[350026390,1737576655975,-151.0,0.000217,2]
[350026391,1737576655984,-151.0,0.000217,2]
[350026392,1737576655994,-151.0,0.000217,2]
[350026393,1737576656003,-151.0,0.000217,2]
[350026394,1737576656013,-151.0,0.000217,2]
[350026395,1737576656023,-1164.472675,0.000217,2]
[350026396,1737576656032,-1164.472675,0.000217,2]
[350026397,1737576656042,-1000.0,0.000217,2]
[350026398,1737576656051,-925.4239392,0.0002171,2]
[350026399,1737576656061,-178.0761006,0.00021725,2]
[350026400,1737576656070,-249.0,0.0002174,2]
[350026401,1737576656079,-11026.02113118,0.00021742,2]
[350026402,1737576656088,-193.93998,0.00021742,2]
[350026403,1737576656098,-193.93998,0.00021742,2]
[350026404,1737576656107,-10851.42776587,0.00021747,2]
[350026405,1737576656117,-206.0,0.0002175,2]
[350026406,1737576656126,-211.0,0.0002175,2]
[350026407,1737576656139,-166.39721903,0.00021762,2]
[350026408,1737576656148,-500.0,0.0002178,2]
[350026409,1737576656158,-500.0,0.0002178,2]
[350026410,1737576656167,-500.0,0.0002178,2]
[350026411,1737576656177,-500.0,0.0002178,2]
[350026412,1737576656186,-500.0,0.0002178,2]
[350026413,1737576656195,-500.0,0.0002178,2]
[350026414,1737576656204,-1912.0,0.0002178,2]
[350026415,1737576656214,-500.0,0.0002178,2]
[350026416,1737576656224,-500.0,0.0002178,2]
[350026417,1737576656234,-745.2167652,0.00021785,2]
[350026418,1737576656243,-609.7228079,0.00021785,2]
[350026419,1737576656253,-474.2288506,0.00021785,2]
[350026420,1737576656262,-178.0761006,0.00021785,2]
[350026421,1737576656272,-178.0761006,0.00021785,2]
[350026422,1737576656282,-178.0761006,0.00021785,2]
[350026423,1737576656291,-178.0761006,0.00021785,2]
[350026424,1737576656300,-783.0510254,0.00021785,2]
[350026425,1737576656309,-640.6781117,0.00021785,2]
[350026426,1737576656319,-498.305198,0.00021785,2]
[350026427,1737576656329,-355.9322843,0.00021785,2]
[350026428,1737576656338,-200.99,0.00021791,2]
[350026429,1737576656348,-999.0,0.00021799,2]
[350026430,1737576656357,-78439.36,0.00021799,2]
[350026431,1737576656366,-141950.85168696,0.000218,2]
[350026432,1737576656376,-408532.54805634,0.000218,2]
[350026433,1737576656389,-10403.14815869,0.000218,2]
[350026434,1737576656399,-151.0,0.000218,2]
[350026435,1737576656408,-151.0,0.000218,2]
[350026436,1737576656418,-165.07443,0.000218,2]
[350026437,1737576656427,-260549.31057689,0.000218,2]
[350026438,1737576656437,-151.0,0.000218,2]
[350026439,1737576656447,-151.0,0.000218,2]
[350026440,1737576656457,-151.0,0.000218,2]
[350026441,1737576656467,-151.0,0.000218,2]
[350026442,1737576656476,-151.0,0.000218,2]
[350026443,1737576656486,-151.0,0.000218,2]
[350026444,1737576656496,-1164.472675,0.000218,2]
[350026445,1737576656506,-1164.472675,0.000218,2]
[350026446,1737576656516,-1164.472675,0.000218,2]
[350026447,1737576656526,-1164.472675,0.000218,2]
[350026448,1737576656536,-1164.472675,0.000218,2]
[350026449,1737576656545,-1164.472675,0.000218,2]
[350026450,1737576656555,-193.93998,0.000218,2]
[350026451,1737576656564,-193.93998,0.000218,2]
[350026452,1737576656573,-193.93998,0.000218,2]
[350026453,1737576656706,-193.93998,0.000218,2]
[350026454,1737576656716,-193.93998,0.000218,2]
[350026455,1737576656725,-193.93998,0.000218,2]
[350026456,1737576656735,-318.7,0.000218,2]
[350026457,1737576656744,-11026.02113118,0.00021821,2]
[350026458,1737576656754,-10851.42776587,0.00021824,2]
[350026459,1737576656763,-338.7348932,0.00021845,2]
[350026460,1737576656773,-500.0,0.00021857,2]
[350026461,1737576656783,-500.0,0.00021857,2]
[350026462,1737576656791,-500.0,0.00021857,2]
[350026463,1737576656800,-500.0,0.00021857,2]
[350026464,1737576656809,-479.74109875,0.00021857,2]
[350026465,1737576656819,-500.0,0.00021857,2]
[350026466,1737576656828,-500.0,0.00021857,2]
[350026467,1737576656837,-500.0,0.00021857,2]
[350026468,1737576656846,-500.0,0.00021857,2]
[350026469,1737576656855,-804.68,0.00021858,2]
[350026470,1737576656864,-1621.28,0.00021858,2]
[350026471,1737576656874,-500.0,0.00021858,2]
[350026472,1737576656884,-500.0,0.00021858,2]
[350026473,1737576656894,-500.0,0.00021858,2]
[350026474,1737576656903,-958.9,0.00021858,2]
[350026475,1737576656912,-767.67,0.00021858,2]
[350026476,1737576656921,-500.47,0.00021858,2]
[350026477,1737576656931,-1427.66,0.00021858,2]
[350026478,1737576656940,-673.88,0.00021858,2]
[350026479,1737576656950,-731.17,0.00021858,2]
[350026480,1737576656961,-500.0,0.00021858,2]
[350026481,1737576656971,-515.75,0.00021858,2]
[350026482,1737576656981,-500.0,0.00021858,2]
[350026483,1737576656990,-500.0,0.00021858,2]
[350026484,1737576656999,-500.0,0.00021858,2]
[350026485,1737576657009,-500.0,0.00021858,2]
[350026486,1737576657018,-1147.63,0.00021858,2]
[350026487,1737576657027,-500.0,0.00021858,2]
[350026488,1737576657036,-1418.93,0.00021858,2]
[350026489,1737576657045,-1227.72,0.00021858,2]
[350026490,1737576657055,-829.17,0.00021858,2]
[350026491,1737576657065,-935.22,0.00021858,2]
[350026492,1737576657074,-1535.02,0.00021858,2]
[350026493,1737576657084,-761.53,0.00021858,2]
[350026494,1737576657093,-1893.32,0.00021858,2]
[350026495,1737576657103,-500.0,0.00021858,2]
[350026496,1737576657112,-1125.71,0.00021858,2]
[350026497,1737576657121,-503.65,0.00021858,2]
[350026498,1737576657132,-1972.85,0.00021858,2]
[350026499,1737576657142,-500.0,0.00021858,2]
[350026500,1737576657151,-500.0,0.00021858,2]
[350026501,1737576657160,-1140.49,0.00021858,2]
[350026502,1737576657170,-500.0,0.00021858,2]
[350026503,1737576657179,-579.56,0.00021858,2]
[350026504,1737576657188,-1511.13,0.00021858,2]
[350026505,1737576657197,-747.79,0.00021858,2]
[350026506,1737576657206,-1027.11,0.00021858,2]
[350026507,1737576657215,-500.0,0.00021858,2]
[350026508,1737576657224,-2249.79,0.00021858,2]
[350026509,1737576657234,-1944.62,0.00021858,2]
[350026510,1737576657243,-456.819768,0.00021858,2]
[350026511,1737576657253,-500.0,0.00021858,2]
[350026512,1737576657262,-500.0,0.00021858,2]
[350026513,1737576657271,-658.05,0.00021858,2]
[350026514,1737576657280,-500.0,0.00021858,2]
[350026515,1737576657291,-500.0,0.00021858,2]
[350026516,1737576657301,-500.0,0.00021858,2]
[350026517,1737576657310,-2268.27,0.00021858,2]
[350026518,1737576657319,-575.467112,0.00021858,2]
[350026519,1737576657329,-500.0,0.00021858,2]
[350026520,1737576657339,-624.79,0.00021858,2]
[350026521,1737576657348,-1110.6,0.00021858,2]
[350026522,1737576657358,-102.34971608,0.00021858,2]
[350026523,1737576657560,-500.0,0.00021312,2]
[350026524,1737576657569,-397.65028392,0.00021858,2]
[350026525,1737576657579,-500.0,0.00021858,2]
[350026526,1737576657589,-1260.55,0.00021858,2]
[350026527,1737576657599,-500.0,0.00021858,2]
[350026528,1737576657609,-500.0,0.00021858,2]
[350026529,1737576657620,-500.0,0.00021859,2]
[350026530,1737576657633,-500.0,0.00021859,2]
[350026531,1737576657642,-78.28015726,0.00021859,2]
[350026532,1737576657925,-500.0,0.0002131,2]
[350026533,1737576657934,-500.0,0.00021311,2]
[350026534,1737576657943,-151.0,0.00021312,2]
[350026535,1737576657952,-170.60505,0.00021312,2]
[350026536,1737576657962,-500.0,0.00021312,2]
[350026537,1737576657971,-151.0,0.00021313,2]
[350026538,1737576657980,-709.93533867,0.00021349,2]
[350026539,1737576657990,-234.610815,0.00021584,2]
[350026540,1737576657999,-500.0,0.00021585,2]
[350026541,1737576658008,-366.16521633,0.00021586,2]
[350026542,1737576658020,-133.83478367,0.00021586,2]
[350026543,1737576658029,-369.63874904,0.00021586,2]
[350026544,1737576658040,-130.36125096,0.00021586,2]
[350026545,1737576658050,-421.71984274,0.00021859,2]
[350026546,1737576658061,-500.0,0.00021859,2]
[350026547,1737576658070,-167.3076911,0.00021859,2]
[350026548,1737576658079,-500.0,0.00021859,2]
[350026549,1737576658088,-500.0,0.00021859,2]